bitfinex-derivatives/quotes_BNBF0:USTF0_20250115
["timestamp","ask_amount","ask_price","bid_price","bid_amount"]
[1736978445946,0.28142853,710.66,709.72,5.286]
[1736978446139,0.2587435,710.65,709.72,5.286]
[1736978446342,0.28143645,710.64,709.72,5.286]
[1736978446545,0.2587435,710.63,709.72,5.286]
[1736978446947,0.28144437,710.62,709.72,5.286]
[1736978447246,0.2587435,710.61,709.72,5.286]
[1736978447446,0.28145229,710.6,709.72,5.286]
[1736978447646,0.2587435,710.59,709.72,5.286]
[1736978448346,0.25877011,710.58,709.72,5.286]
[1736978448542,0.25877011,710.57,709.72,5.286]
[1736978448747,0.25877011,710.56,709.72,5.286]
[1736978449046,0.25877011,710.55,709.72,5.286]
[1736978449346,0.54024617,710.54,709.72,5.286]
[1736978449545,0.54025013,710.53,709.72,5.286]
[1736978449745,0.25877011,710.52,709.72,5.286]
[1736978449947,0.54025805,710.51,709.72,5.286]
[1736978450142,0.54026201,710.5,709.72,5.286]
[1736978450348,0.25879784,710.49,709.72,5.286]
[1736978450648,0.25879784,710.48,709.72,5.286]
[1736978450848,0.28150379,710.47,709.72,5.286]
[1736978451049,0.25879782,710.46,709.72,5.286]
[1736978451348,1.05314654,710.45,709.72,5.286]
[1736978451547,0.25879782,710.44,709.72,5.286]
[1736978452746,0.25879782,710.43,709.72,5.286]
[1736978452948,0.25879782,710.42,709.72,5.286]
[1736978453148,0.25879782,710.41,709.72,5.286]
[1736978453344,0.25879782,710.46,709.72,5.286]
[1736978453547,0.25879782,710.45,709.72,5.286]
[1736978453747,0.25879782,710.44,709.72,5.286]
[1736978454050,0.25879782,710.43,709.72,5.286]
[1736978454249,0.25879782,710.42,709.72,5.286]
[1736978454450,0.25879782,710.41,709.72,5.286]
[1736978454750,0.25879782,710.4,709.72,5.286]
[1736978454950,0.25879782,710.39,709.72,5.286]
[1736978455149,0.25879782,710.38,709.72,5.286]
[1736978455350,0.25879782,710.37,709.72,5.286]
[1736978455546,0.25879782,710.36,709.72,5.286]
[1736978455748,0.25879782,710.35,709.72,5.286]
[1736978455949,0.25879782,710.34,709.72,5.286]
[1736978456145,0.25879782,710.33,709.72,5.286]
[1736978456352,0.25879782,710.32,709.72,5.286]
[1736978456651,0.25879782,710.31,709.72,5.286]
[1736978456846,0.25879782,710.3,709.72,5.286]
[1736978457049,0.28150379,710.47,709.72,5.286]
[1736978457251,0.25879057,710.46,709.72,5.286]
[1736978459453,0.25879126,710.45,709.72,5.286]
[1736978459653,0.25879126,710.44,709.72,5.286]
[1736978459854,0.25879126,710.43,709.72,5.286]
[1736978460153,0.25879126,710.42,709.72,5.286]
[1736978460355,0.25879126,710.41,709.72,5.286]
[1736978460555,0.25879126,710.4,709.72,5.286]
[1736978460755,0.25879126,710.39,709.72,5.286]
[1736978461055,0.25879126,710.38,709.72,5.286]
[1736978461257,0.28150379,710.47,709.72,5.286]
[1736978461451,0.25876721,710.46,709.72,5.286]
[1736978464652,0.28150379,710.47,709.72,5.286]
[1736978464850,0.25877693,710.46,709.72,5.286]
[1736978466852,0.28150379,710.47,709.72,5.286]
[1736978466853,0.25878062,710.45,709.72,5.286]
[1736978467058,0.25878062,710.44,709.72,5.286]
[1736978467357,0.25878062,710.43,709.72,5.286]
[1736978467656,0.25878062,710.42,709.72,5.286]
[1736978467860,0.25878062,710.41,709.72,5.286]
[1736978468158,0.25878062,710.4,709.72,5.286]
[1736978468357,0.25878062,710.39,709.72,5.286]
[1736978468557,0.25878062,710.38,709.72,5.286]
[1736978468859,0.25878062,710.37,709.72,5.286]
[1736978469058,0.25878062,710.36,709.72,5.286]
[1736978469250,0.25878062,710.35,709.72,5.286]
[1736978469452,0.28150379,710.47,709.72,5.286]
[1736978469655,0.25877548,710.46,709.72,5.286]
[1736978472259,0.25877098,710.45,709.72,5.286]
[1736978472455,0.25877098,710.44,709.72,5.286]
[1736978472660,0.25877098,710.43,709.72,5.286]
[1736978472855,0.25877098,710.42,709.72,5.286]
[1736978473059,0.25877033,710.41,709.72,5.286]
[1736978473258,0.28150379,710.47,709.72,5.286]
[1736978473463,0.25877013,710.46,709.72,5.286]
[1736978475166,0.25876856,710.45,709.72,5.286]
[1736978475362,0.25876856,710.44,709.72,5.286]
[1736978475566,0.25876856,710.43,709.72,5.286]
[1736978475866,0.25876856,710.42,709.72,5.286]
[1736978476066,0.28150379,710.47,709.72,5.286]
[1736978476266,0.2587717,710.46,709.72,5.286]
[1736978477762,1.33465033,710.47,709.72,5.286]
[1736978477961,0.25876852,710.46,709.72,5.286]
[1736978478362,1.05314654,710.45,709.72,5.286]
[1736978478560,0.25876852,710.44,709.72,5.286]
[1736978479563,1.05314654,710.43,709.72,5.286]
[1736978479765,0.25876852,710.42,709.72,5.286]
[1736978480566,1.05314654,710.43,709.72,5.286]
[1736978480567,1.05314654,710.35,709.72,5.286]
[1736978481368,1.05314654,710.34,709.72,5.286]
[1736978482867,1.05314654,710.32,709.72,5.286]
[1736978483971,1.05314654,710.3,709.72,5.286]
[1736978484671,1.05314654,710.31,709.72,5.286]
[1736978485572,1.05314654,710.32,709.72,5.286]
[1736978486667,1.05314654,710.31,709.72,5.286]
[1736978488373,1.05314654,710.3,709.72,5.286]
[1736978489074,0.25877381,710.29,709.72,5.286]
[1736978489574,0.25877412,710.28,709.72,5.286]
[1736978489872,0.25877412,710.27,709.72,5.286]
[1736978490074,1.05314654,710.3,709.72,5.286]
[1736978490268,0.25877676,710.29,709.72,5.286]
[1736978490467,1.05314654,710.22,709.72,5.286]
[1736978492572,0.79020712,710.46,709.72,5.286]
[1736978492573,1.05314654,710.19,709.72,5.286]
[1736978492770,0.00014654,710.19,709.72,5.286]
[1736978493577,0.25876378,710.38,709.72,5.286]
[1736978493874,0.25876378,710.37,709.72,5.286]
[1736978494067,1.05486773,710.41,709.72,5.286]
[1736978494068,0.25876378,710.36,709.72,5.286]
[1736978494272,0.25876378,710.35,709.72,5.286]
[1736978494472,0.25876378,710.34,709.72,5.286]
[1736978494669,0.25876378,710.33,709.72,5.286]
[1736978494976,0.25876378,710.32,709.72,5.286]
[1736978495171,0.25876378,710.31,709.72,5.286]
[1736978495373,1.05486773,710.44,709.72,5.286]
[1736978495574,0.25876031,710.43,709.72,5.286]
[1736978495774,1.05486773,710.44,709.72,5.286]
[1736978495975,1.05486773,710.45,709.72,5.286]
[1736978496971,0.28150379,710.47,709.72,5.286]
[1736978509390,0.25873818,710.46,709.72,5.286]
[1736978509590,0.28150379,710.47,709.72,5.286]
[1736978509789,0.25873789,710.46,709.72,5.286]
[1736978509990,0.25873802,710.45,709.72,5.286]
[1736978510194,0.28150379,710.47,709.72,5.286]
[1736978510491,0.25874497,710.46,709.72,5.286]
[1736978513394,0.28150379,710.47,709.72,5.286]
[1736978522497,0.25877811,710.46,709.72,5.286]
[1736978524297,0.25878218,710.45,709.72,5.286]
[1736978524495,0.25878218,710.44,709.72,5.286]
[1736978524698,0.25878218,710.43,709.72,5.286]
[1736978525000,0.25878218,710.42,709.72,5.286]
[1736978525194,0.25878218,710.41,709.72,5.286]
[1736978525400,0.25878218,710.4,709.72,5.286]
[1736978525600,0.25878218,710.39,709.72,5.286]
[1736978525803,0.25878218,710.38,709.72,5.286]
[1736978526097,0.25878218,710.37,709.72,5.286]
[1736978526298,0.28150379,710.47,709.72,5.286]
[1736978526700,0.25877779,710.46,709.72,5.286]
[1736978529304,0.25877979,710.45,709.72,5.286]
[1736978529504,0.25877979,710.44,709.72,5.286]
[1736978529704,0.25877979,710.43,709.72,5.286]
[1736978530004,0.25878083,710.42,709.72,5.286]
[1736978530201,0.25878083,710.41,709.72,5.286]
[1736978530396,0.25878083,710.4,709.72,5.286]
[1736978530605,0.25878083,710.39,709.72,5.286]
[1736978530805,0.25878083,710.38,709.72,5.286]
[1736978531003,0.25878083,710.37,709.72,5.286]
[1736978531200,0.25878083,710.36,709.72,5.286]
[1736978531397,0.25878083,710.35,709.72,5.286]
[1736978531597,0.25878083,710.34,709.72,5.286]
[1736978531801,0.28150379,710.47,709.72,5.286]
[1736978531997,0.25878316,710.46,709.72,5.286]
[1736978532204,0.25878316,710.46,709.72,1e-08]
[1736978532400,0.28151171,710.45,709.0,1.05389538]
[1736978533503,0.28151171,710.45,709.0,4.88289538]
[1736978533705,0.28151171,710.45,709.0,3.829]
[1736978543811,0.28151171,710.45,709.0,5.112]
[1736978548516,0.25881308,710.44,709.0,5.112]
[1736978548813,0.25881506,710.43,709.0,5.112]
[1736978549014,0.25881506,710.42,709.0,5.112]
[1736978549215,0.25881506,710.41,709.0,5.112]
[1736978549413,0.25881506,710.4,709.0,5.112]
[1736978549614,0.28151171,710.45,709.0,5.112]
[1736978549916,0.25881474,710.44,709.0,5.112]
[1736978550111,0.54033042,710.44,709.0,5.112]
[1736978550311,0.25881474,710.43,709.0,5.112]
[1736978551511,0.28151568,710.44,709.0,5.112]
[1736978551808,0.25881488,710.43,709.0,5.112]
[1736978552212,0.28151568,710.44,709.0,5.112]
[1736978561223,0.28151568,710.44,709.01,0.28208346]
[1736978562518,0.28151568,710.44,709.01,1.25008346]
[1736978562721,0.28151568,710.44,709.01,4.56708346]
[1736978574229,0.2587808,710.43,709.01,4.56708346]
[1736978575931,0.2587808,710.43,709.1,1.05389538]
[1736978576630,0.25879836,710.42,709.1,1.05389538]
[1736978576834,0.25879836,710.41,709.09,1.05389538]
[1736978577022,0.25879836,710.4,709.09,1.05389538]
[1736978577228,0.25879836,710.39,709.09,1.05389538]
[1736978577529,0.25879836,710.38,709.09,1.05389538]
[1736978577729,0.25879836,710.37,709.03,1.05389538]
[1736978578029,0.25879836,710.36,709.03,1.05389538]
[1736978578229,0.25879836,710.35,709.03,1.05389538]
[1736978578428,0.25879836,710.34,709.03,1.05389538]
[1736978578631,0.25879836,710.33,709.03,1.05389538]
[1736978578824,0.28151568,710.44,709.03,1.05389538]
[1736978578825,0.25879836,710.32,709.03,1.05389538]
[1736978579025,0.25879836,710.31,709.03,1.05389538]
[1736978579229,0.25879836,710.3,709.03,1.05389538]
[1736978579432,0.25881216,710.29,709.03,1.05389538]
[1736978579630,0.25881216,710.28,709.03,1.05389538]
[1736978579826,0.25881216,710.27,709.03,1.288]
[1736978580031,1.05344012,710.43,709.03,1.288]
[1736978580227,0.25881047,710.42,709.03,1.288]
[1736978581834,0.25881047,710.41,709.03,1.288]
[1736978582033,0.25881047,710.4,709.03,1.288]
[1736978582334,0.25881047,710.39,709.04,0.28207153]
[1736978582530,0.25881047,710.43,709.04,0.28207153]
[1736978582734,0.25881047,710.42,709.04,0.28207153]
[1736978582934,0.25881047,710.41,709.04,0.28207153]
[1736978583135,0.25881047,710.4,709.04,0.28207153]
[1736978583337,0.28151568,710.44,709.04,0.28207153]
[1736978583338,0.25881047,710.39,709.04,0.28207153]
[1736978583533,0.28151568,710.44,709.04,0.28207153]
[1736978583733,0.25876456,710.43,709.04,0.28207153]
[1736978584033,0.28151568,710.44,709.04,0.97007153]
[1736978584334,0.25876336,710.43,709.04,0.97007153]
[1736978584935,0.25876336,710.43,709.05,1.05389538]
[1736978585429,0.25876336,710.43,709.06,0.28206357]
[1736978586529,0.25876336,710.43,709.06,1.33595895]
[1736978587530,0.25876336,710.43,709.06,0.28206357]
[1736978589837,0.25876336,710.43,709.07,1.05389538]
[1736978590041,0.25876336,710.43,709.08,0.28205562]
[1736978590738,0.25876336,710.43,709.09,1.05389538]
[1736978590937,0.25876336,710.43,709.1,0.28204766]
[1736978592038,0.25876336,710.43,709.1,1.33594304]
[1736978592434,0.25875662,710.42,709.1,1.33594304]
[1736978592638,0.28151568,710.44,709.1,1.33594304]
[1736978592639,0.25875662,710.41,709.1,1.33594304]
[1736978592839,0.25875662,710.4,709.1,1.33594304]
[1736978593141,0.25875662,710.39,709.1,0.28204766]
[1736978593342,0.28151568,710.44,709.1,0.28204766]
[1736978593542,0.25875661,710.43,709.1,0.28204766]
[1736978595237,0.25876315,710.42,709.1,0.28204766]
[1736978595443,0.25876315,710.41,709.1,0.28204766]
[1736978595639,0.25876315,710.4,709.1,0.28204766]
[1736978595940,0.28151568,710.44,709.1,0.28204766]
[1736978596243,0.2587598,710.43,709.1,0.28204766]
[1736978597643,0.28151568,710.44,709.1,0.28204766]
[1736978602049,0.28151568,710.44,709.1,1.92604766]
[1736978606151,0.28151568,710.44,709.1,2.61404766]
[1736978609057,0.28151568,710.44,709.1,3.63404766]
[1736978617161,1.05408686,710.43,709.1,3.63404766]
[1736978617361,0.25875108,710.42,709.1,3.63404766]
[1736978618260,1.05408686,710.35,709.19,1.05389538]
[1736978618456,1.05408686,710.35,709.2,0.28200789]
[1736978619064,1.05408686,710.31,709.27,1.05389538]
[1736978619960,1.05408686,710.31,709.27,2.16489538]
[1736978620362,1.05408686,710.32,709.27,2.16489538]
[1736978621663,0.28151568,710.44,709.27,1.111]
[1736978623667,0.28151568,710.44,709.27,1.39298006]
[1736978623966,0.28151568,710.44,709.28,0.28197608]
[1736978627362,0.28151568,710.44,709.28,2.03097608]
[1736978630966,0.28151568,710.44,709.28,2.99897608]
[1736978632273,0.28151568,710.44,709.28,3.68697608]
[1736978635272,0.2587198,710.43,709.28,3.68697608]
[1736978635569,0.28151568,710.44,709.28,3.68697608]
[1736978636271,0.28151568,710.44,709.29,1.05389538]
[1736978636472,0.28151568,710.44,709.29,1.33586749]
[1736978637067,1.05408686,710.47,709.3,0.28196813]
[1736978637375,1.05408686,710.5,709.3,0.28196813]
[1736978638073,1.05408686,710.78,709.3,0.28196813]
[1736978639171,1.05408686,710.81,709.3,0.28196813]
[1736978639771,0.25867096,710.8,709.3,0.28196813]
[1736978640077,1.05408686,710.82,709.3,0.28196813]
[1736978640373,0.25866933,710.81,709.3,0.28196813]
[1736978642370,0.25866933,710.8,709.3,0.28196813]
[1736978642572,0.25866809,710.79,709.3,0.28196813]
[1736978642773,0.25866656,710.78,709.3,0.28196813]
[1736978642969,1.05408686,710.83,709.3,0.28196813]
[1736978643178,0.25865025,710.82,709.3,0.28196813]
[1736978643476,1.05408686,710.84,709.3,0.28196813]
[1736978644178,1.05408686,710.91,709.3,0.28196813]
[1736978644478,0.5399842,710.9,709.3,0.28196813]
[1736978644676,0.53998815,710.89,709.3,0.28196813]
[1736978644870,0.25865068,710.88,709.3,0.28196813]
[1736978646577,0.25865507,710.87,709.3,0.28196813]
[1736978646779,0.25865507,710.86,709.3,0.28196813]
[1736978647077,0.25865507,710.85,709.3,0.28196813]
[1736978647279,0.54001233,710.84,709.3,0.28196813]
[1736978647479,0.25865507,710.83,709.3,0.96996813]
[1736978649378,1.05408686,710.8,709.3,0.96996813]
[1736978649579,0.25865507,710.79,709.3,0.96996813]
[1736978650477,1.05408686,710.7,709.3,0.96996813]
[1736978650680,0.25865507,710.69,709.3,0.96996813]
[1736978651081,0.25865507,710.69,709.3,2.07796813]
[1736978651282,0.25865507,710.69,709.3,3.15796813]
[1736978651581,1.31274193,710.69,709.3,3.15796813]
[1736978651779,0.25865507,710.68,709.3,3.15796813]
[1736978651980,0.25869109,710.67,709.3,3.15796813]
[1736978652183,0.25869109,710.66,709.3,3.15796813]
[1736978652382,1.05408686,710.69,709.3,3.15796813]
[1736978652383,0.25869109,710.65,709.3,3.15796813]
[1736978652582,1.05408686,710.69,709.3,3.15796813]
[1736978652784,0.25869128,710.68,709.3,3.15796813]
[1736978653584,0.25869128,710.67,709.3,3.15796813]
[1736978653883,0.25869128,710.66,709.3,3.15796813]
[1736978654083,0.25869128,710.65,709.3,3.15796813]
[1736978654283,1.05408686,710.71,709.3,3.15796813]
[1736978654483,0.25869958,710.7,709.3,4.63096813]
[1736978654679,1.05408686,710.7,709.3,4.63096813]
[1736978654885,0.25869683,710.69,709.3,4.63096813]
[1736978655682,0.25869683,710.68,709.3,4.63096813]
[1736978655885,1.05408686,710.74,709.3,4.63096813]
[1736978656087,0.28135726,710.84,709.3,4.63096813]
[1736978677389,0.25863279,710.83,709.3,4.63096813]
[1736978678595,1.05408686,710.79,709.38,1.05389538]
[1736978678895,0.25863279,710.78,709.38,1.05389538]
[1736978679392,1.05408686,710.79,709.38,1.05389538]
[1736978679592,0.25863829,710.78,709.39,0.28193236]
[1736978679998,0.25863829,710.78,709.39,4.45593236]
[1736978680599,1.05408686,710.83,709.39,4.45593236]
[1736978680899,0.25863108,710.82,709.39,4.45593236]
[1736978681702,0.25863108,710.81,709.39,4.45593236]
[1736978682000,1.33544412,710.84,709.39,4.45593236]
[1736978682300,0.25862648,710.83,709.39,4.45593236]
[1736978682695,0.54005865,710.82,709.39,4.45593236]
[1736978683003,0.54006261,710.81,709.39,4.45593236]
[1736978683195,0.2813731,710.8,709.39,4.45593236]
[1736978688502,0.2586741,710.79,709.39,4.45593236]
[1736978688708,0.28138101,710.78,709.39,4.45593236]
[1736978689403,0.25867625,710.77,709.39,4.45593236]
[1736978690302,0.25867754,710.76,709.39,4.45593236]
[1736978690502,0.25867754,710.75,709.39,4.45593236]
[1736978690907,1.05408686,710.76,709.39,4.45593236]
[1736978691103,0.2586782,710.75,709.39,4.45593236]
[1736978693004,1.05408686,710.76,709.39,4.45593236]
[1736978693208,1.05408686,710.67,709.39,4.45593236]
[1736978693410,0.25867753,710.66,709.39,4.45593236]
[1736978693810,0.25867751,710.65,709.39,4.45593236]
[1736978694009,0.25867751,710.64,709.39,4.45593236]
[1736978694211,0.25867751,710.63,709.39,4.45593236]
[1736978694511,0.25867751,710.62,709.39,4.45593236]
[1736978694710,0.25867751,710.61,709.39,4.45593236]
[1736978695012,0.25867751,710.6,709.39,4.45593236]
[1736978695211,0.28138101,710.78,709.39,4.45593236]
[1736978695212,1.05408686,710.65,709.39,4.45593236]
[1736978695411,0.25867579,710.64,709.39,4.45593236]
[1736978695909,0.25867598,710.63,709.39,4.45593236]
[1736978696112,0.25867598,710.62,709.39,4.45593236]
[1736978696313,0.25867598,710.61,709.39,4.45593236]
[1736978696513,0.25867598,710.6,709.39,4.45593236]
[1736978696706,0.25867598,710.59,709.39,4.45593236]
[1736978696906,1.05408686,710.65,709.39,4.45593236]
[1736978697108,0.25867537,710.64,709.39,4.45593236]
[1736978698017,1.31276223,710.64,709.39,4.45593236]
[1736978698207,0.25867537,710.63,709.39,4.45593236]
[1736978698612,1.05408686,710.64,709.39,4.45593236]
[1736978698816,0.2586749,710.63,709.39,4.45593236]
[1736978699209,0.2586749,710.62,709.39,4.45593236]
[1736978699415,0.2586749,710.61,709.39,4.45593236]
[1736978699615,0.2586749,710.6,709.39,4.45593236]
[1736978699813,0.2586749,710.59,709.39,4.45593236]
[1736978700118,0.2586749,710.58,709.39,4.45593236]
[1736978700312,0.2586749,710.57,709.39,4.45593236]
[1736978700514,1.05408686,710.63,709.39,4.45593236]
[1736978700713,0.25867643,710.62,709.39,4.45593236]
[1736978700916,0.25867624,710.61,709.39,4.45593236]
[1736978701119,0.25867624,710.6,709.39,4.45593236]
[1736978701316,0.25867624,710.59,709.39,4.45593236]
[1736978701516,0.25867624,710.58,709.39,4.45593236]
[1736978701719,0.25867585,710.57,709.39,4.45593236]
[1736978701920,1.05408686,710.63,709.39,4.45593236]
[1736978702220,0.25867463,710.62,709.39,4.45593236]
[1736978703316,1.05408686,710.61,709.39,4.45593236]
[1736978703519,0.25867444,710.6,709.39,4.45593236]
[1736978704423,1.3127613,710.6,709.39,4.45593236]
[1736978704618,0.25867444,710.59,709.39,4.45593236]
[1736978705222,1.3127613,710.59,709.4,1.05389538]
[1736978705423,0.25867444,710.58,709.4,1.05389538]
[1736978706120,1.05408686,710.59,709.4,1.05389538]
[1736978706425,1.31276273,710.58,709.39,1.33582774]
[1736978706627,1.05408686,710.58,709.4,1.586]
[1736978707226,1.05408686,710.67,709.4,1.586]
[1736978707419,0.25867738,710.66,709.4,1.586]
[1736978709728,0.25867497,710.65,709.4,1.586]
[1736978709927,0.25867497,710.64,709.4,1.586]
[1736978710126,1.05408686,710.67,709.4,1.586]
[1736978710328,0.25867497,710.66,709.4,1.586]
[1736978710528,1.31276183,710.66,709.4,1.586]
[1736978710727,0.25867497,710.65,709.4,1.586]
[1736978711524,1.05408686,710.66,709.4,1.586]
[1736978712124,0.25866732,710.65,709.4,1.586]
[1736978712526,1.05408686,710.67,709.4,1.586]
[1736978712725,0.25867291,710.66,709.4,1.586]
[1736978713332,1.05408686,710.65,709.4,1.586]
[1736978713634,0.25867291,710.64,709.4,1.586]
[1736978714234,1.05408686,710.63,709.4,1.586]
[1736978715333,1.05408686,710.61,709.4,1.586]
[1736978716427,0.25867404,710.6,709.4,1.586]
[1736978717227,0.25867514,710.59,709.4,1.586]
[1736978717432,1.05408686,710.52,709.46,1.05389538]
[1736978717724,0.25867514,710.51,709.46,1.05389538]
[1736978718128,1.05408686,710.46,709.55,1.05389538]
[1736978719032,1.05408686,710.45,709.55,2.71389538]
[1736978719431,1.05408686,710.45,709.57,0.28186084]
[1736978720037,1.05408686,710.81,709.57,0.28186084]
[1736978721437,1.05408686,711.38,709.57,0.28186084]
[1736978721636,0.53965134,711.37,709.57,0.28186084]
[1736978721839,0.53965529,711.36,709.57,0.28186084]
[1736978722038,0.53965924,711.35,709.57,0.28186084]
[1736978722240,0.5396632,711.34,709.57,0.28186084]
[1736978722441,0.53966715,711.33,709.57,0.28186084]
[1736978722738,0.53968884,711.32,709.57,0.28186084]
[1736978722942,0.53969279,711.31,709.57,0.28186084]
[1736978723139,0.53969675,711.3,709.57,0.28186084]
[1736978723339,0.5397007,711.29,709.57,0.28186084]
[1736978723541,0.25852144,711.28,709.57,0.28186084]
[1736978723740,0.28118717,711.27,709.57,0.28186084]
[1736978723939,0.25852144,711.26,709.57,0.28186084]
[1736978724335,0.28119507,711.25,709.57,0.28186084]
[1736978724641,0.25852144,711.24,709.57,0.28186084]
[1736978725042,0.28120298,711.23,709.57,0.28186084]
[1736978725242,0.25852144,711.22,709.57,0.28186084]
[1736978725438,0.25852073,711.21,709.57,0.28186084]
[1736978726036,0.28120694,711.22,709.57,0.28186084]
[1736978726342,0.25851292,711.21,709.57,0.28186084]
[1736978726642,0.28120694,711.22,709.57,0.28186084]
[1736978730843,0.28120694,711.22,709.57,1.35586084]
[1736978731736,0.25847671,711.21,709.57,1.35586084]
[1736978731938,0.28120694,711.22,709.57,1.35586084]
[1736978732138,0.25847634,711.21,709.57,1.35586084]
[1736978732439,0.28120694,711.22,709.57,1.35586084]
[1736978732645,0.25847584,711.21,709.57,1.35586084]
[1736978733637,0.25847789,711.2,709.57,1.35586084]
[1736978733839,0.28120694,711.22,709.57,1.35586084]
[1736978734044,0.25847843,711.21,709.57,1.35586084]
[1736978734544,0.25847862,711.2,709.57,1.35586084]
[1736978734741,0.28120694,711.22,709.57,1.35586084]
[1736978735345,0.25847985,711.21,709.57,1.35586084]
[1736978735543,0.28120694,711.22,709.57,1.35586084]
[1736978735743,0.28120694,711.22,709.57,2.04286084]
[1736978736639,0.258477,711.21,709.57,2.04286084]
[1736978738742,0.258477,711.21,709.57,3.07186084]
[1736978739141,0.28120694,711.22,709.57,3.07186084]
[1736978739339,0.25847837,711.21,709.57,3.07186084]
[1736978741948,0.25847663,711.2,709.57,3.07186084]
[1736978742146,0.25847663,711.19,709.57,5.10386084]
[1736978742448,0.25847663,711.18,709.57,5.10386084]
[1736978742646,0.25847663,711.17,709.57,5.10386084]
[1736978742846,0.25847663,711.16,709.57,5.10386084]
[1736978743042,0.25847663,711.15,709.57,5.10386084]
[1736978743246,0.25847663,711.14,709.57,5.10386084]
[1736978743546,0.25847663,711.13,709.57,5.10386084]
[1736978743740,0.25847663,711.12,709.57,5.10386084]
[1736978743944,0.25847663,711.11,709.57,5.10386084]
[1736978744247,0.28120694,711.22,709.57,5.10386084]
[1736978744547,0.25846856,711.21,709.57,5.10386084]
[1736978744748,0.25847407,711.2,709.57,5.10386084]
[1736978744948,0.25847407,711.19,709.57,5.10386084]
[1736978745141,0.25847407,711.18,709.57,5.10386084]
[1736978745345,0.25847407,711.17,709.57,5.10386084]
[1736978745545,0.25847407,711.16,709.57,5.10386084]
[1736978745748,0.25847407,711.15,709.57,5.10386084]
[1736978745950,0.25847407,711.14,709.57,5.10386084]
[1736978746146,0.25847407,711.13,709.57,5.10386084]
[1736978746342,0.28120694,711.22,709.57,5.10386084]
[1736978746343,0.25847407,711.12,709.57,5.10386084]
[1736978746544,0.25847407,711.11,709.57,5.10386084]
[1736978746745,0.25847407,711.1,709.57,5.10386084]
[1736978746944,0.25847407,711.09,709.57,5.10386084]
[1736978747145,0.25847407,711.08,709.57,5.10386084]
[1736978747348,0.28120694,711.22,709.57,5.10386084]
[1736978747647,0.25847381,711.21,709.57,5.10386084]
[1736978750948,0.28120694,711.22,709.57,5.10386084]
[1736978751150,0.25847614,711.21,709.57,5.10386084]
[1736978751544,0.25847804,711.2,709.57,5.10386084]
[1736978751749,0.25847804,711.19,709.57,5.10386084]
[1736978751944,0.25847804,711.21,709.57,5.10386084]
[1736978752143,0.25847804,711.2,709.57,5.10386084]
[1736978752342,0.25847804,711.19,709.57,5.10386084]
[1736978752547,0.25847804,711.18,709.57,5.10386084]
[1736978752744,0.25847804,711.17,709.57,5.10386084]
[1736978752945,0.25847804,711.16,709.57,5.10386084]
[1736978753146,0.25847804,711.15,709.57,5.10386084]
[1736978753451,0.25847804,711.14,709.57,5.10386084]
[1736978753651,0.25847804,711.13,709.57,5.10386084]
[1736978753854,0.28120694,711.22,709.57,5.10386084]
[1736978753855,0.25847804,711.12,709.64,1.05389538]
[1736978754055,0.28120694,711.22,709.64,1.05389538]
[1736978754252,0.25847663,711.21,709.64,1.05389538]
[1736978754753,0.25847663,711.21,709.57,4.02986084]
[1736978754754,1.05408686,711.16,709.78,1.05389538]
[1736978755054,0.25847663,711.15,709.78,1.05389538]
[1736978755250,0.25847663,711.15,709.78,2.27389538]
[1736978755652,1.05408686,711.14,709.8,1.05389538]
[1736978756849,1.3352938,711.22,709.78,1.22]
[1736978757050,0.25847912,711.21,709.78,1.22]
[1736978757253,1.3352938,711.22,709.78,1.22]
[1736978757852,0.28120694,711.22,709.78,1.22]
[1736978759161,0.28120694,711.22,709.78,1.907]
[1736978760555,1.05408686,711.21,709.78,1.907]
[1736978761257,1.05408686,711.21,709.78,3.84]
[1736978761659,1.05408686,711.18,709.78,3.84]
[1736978762761,1.05408686,711.15,709.78,3.84]
[1736978764556,1.05408686,711.16,709.78,3.84]
[1736978765261,1.05408686,711.15,709.78,3.84]
[1736978766264,1.05408686,711.11,709.82,1.05389538]
[1736978767054,1.05408686,711.12,709.83,1.05389538]
[1736978767261,0.25847042,711.11,709.83,1.05389538]
[1736978768065,1.05408686,711.04,710.01,1.05389538]
[1736978768664,1.05408686,711.05,710.01,1.132]
[1736978769959,1.3352938,711.22,710.01,1.132]
[1736978770864,0.28120694,711.22,710.01,1.132]
[1736978771863,1.05408686,711.2,710.01,1.132]
[1736978775569,0.28120694,711.22,710.01,1.132]
[1736978775570,1.05408686,711.21,710.01,1.132]
[1736978776567,1.3352938,711.22,710.01,1.132]